fUST/lending_fUST_20250928
["ID","MTS","AMOUNT","RATE_DAILY","PERIOD"]
[388046999,1758991135439,197.13639555,0.00024897,2]
[388047000,1758991136071,300.0,0.000182,2]
[388047001,1758991143490,3863.38730227,0.00024897,2]
[388047002,1758991143512,1136.61269773,0.00024897,2]
[388047003,1758991148310,300.0,0.000182,2]
[388047004,1758991151240,3441.05532754,0.00024897,2]
[388047005,1758991159342,300.0,0.000182,2]
[388047006,1758991166446,300.0,0.000182,2]
[388047007,1758991166511,4522.34197473,0.00024897,2]
[388047008,1758991166534,477.65802527,0.00024897,2]
[388047009,1758991170278,300.0,0.000182,2]
[388047010,1758991177093,300.0,0.000182,2]
[388047011,1758991189532,5000.0,0.00024897,2]
[388047012,1758991208132,204.62870398,0.00024797,2]
[388047013,1758991212668,3717.72327075,0.00024897,2]
[388047014,1758991212690,1282.27672925,0.00024897,2]
[388047015,1758991261777,674.01,0.00028767,120]
[388047016,1758991416290,2423.24584396,0.0002219,2]
[388047017,1758991450027,1231.6012365,0.00023993,2]
[388047034,1758991568559,666.0,0.00023993,2]
[388047035,1758991591161,-500.0,0.000249,2]
[388047036,1758991591181,-713.3066157,0.00024902,2]
[388047037,1758991591202,-300.0,0.00024991,2]
[388047038,1758991591223,-693.21903017,0.00024991,2]
[388047039,1758991600780,309.3711737,0.00024414,30]
[388047040,1758991638122,-221.01792041,0.0002499,2]
[388047041,1758991654757,5679.16291954,0.00023995,2]
[388047042,1758991654780,10000.01,0.00023995,2]
[388047043,1758991654802,10000.01,0.00023995,2]
[388047044,1758991654824,7825.97411106,0.00023995,2]
[388047045,1758991708234,300.0,0.00024,2]
[388047046,1758991720767,300.0,0.00024,2]
[388047047,1758991732512,300.0,0.00024,2]
[388047048,1758991745072,-3365.70493916,0.00024493,2]
[388047049,1758991745093,-5000.0,0.0002474,2]
[388047050,1758991745113,-300.0,0.00024988,2]
[388047051,1758991745133,-500.0,0.00024989,2]
[388047052,1758991745152,-500.0,0.00024989,2]
[388047053,1758991745173,-500.0,0.00024989,2]
[388047054,1758991745193,-500.0,0.00024989,2]
[388047055,1758991745212,-110.65321619,0.00024989,2]
[388047056,1758991778623,3629.04780455,0.0002219,2]
[388047057,1758991808984,702.25996,0.00024334,2]
[388047079,1758991832602,-300.0,0.00024738,2]
[388047081,1758991832612,-919.0,0.00024738,2]
[388047083,1758991832622,-884.12706074,0.00024739,2]
[388047085,1758991832635,-1707.03412914,0.00024739,2]
[388047088,1758991832657,-2408.83881012,0.00024739,2]
[388047090,1758991832666,-627.98440412,0.00024739,2]
[388047092,1758991832675,-389.34678381,0.00024989,2]
[388047094,1758991832684,-500.0,0.00024989,2]
[388047096,1758991832693,-500.0,0.00024989,2]
[388047097,1758991832702,-500.0,0.00024989,2]
[388047098,1758991832712,-618.42710173,0.00024989,2]
[388047100,1758991832721,-500.0,0.00024989,2]
[388047102,1758991832730,-500.0,0.00024989,2]
[388047105,1758991832740,-500.0,0.00024989,2]
[388047108,1758991832749,-500.0,0.00024989,2]
[388047111,1758991832760,-586.49273536,0.00024989,2]
[388047114,1758991832768,-500.0,0.00024989,2]
[388047117,1758991832778,-490.6580941,0.00024989,2]
[388047120,1758991832787,-500.0,0.00024989,2]
[388047123,1758991832796,-500.0,0.00024989,2]
[388047126,1758991832805,-500.0,0.00024989,2]
[388047128,1758991832814,-500.0,0.00024989,2]
[388047130,1758991832823,-500.0,0.00024989,2]
[388047132,1758991832833,-500.0,0.00024989,2]
[388047134,1758991832842,-500.0,0.00024989,2]
[388047136,1758991832852,-500.0,0.00024989,2]
[388047138,1758991832862,-500.0,0.00024989,2]
[388047139,1758991832871,-500.0,0.00024989,2]
[388047140,1758991832881,-83.65264694,0.00024989,2]
[388047141,1758991832892,-416.34735306,0.00024989,2]
[388047142,1758991832901,-500.0,0.00024989,2]
[388047143,1758991832910,-500.0,0.00024989,2]
[388047144,1758991832920,-500.0,0.00024989,2]
[388047145,1758991832931,-500.0,0.00024989,2]
[388047146,1758991832941,-500.0,0.00024989,2]
[388047147,1758991832951,-500.0,0.00024989,2]
[388047148,1758991832960,-500.0,0.00024989,2]
[388047149,1758991832969,-500.0,0.00024989,2]
[388047150,1758991832979,-500.0,0.00024989,2]
[388047151,1758991832989,-500.0,0.00024989,2]
[388047152,1758991832998,-500.0,0.00024989,2]
[388047153,1758991833007,-500.0,0.00024989,2]
[388047154,1758991833018,-500.0,0.00024989,2]
[388047155,1758991833027,-500.0,0.00024989,2]
[388047156,1758991833037,-500.0,0.00024989,2]
[388047157,1758991833047,-500.0,0.00024989,2]
[388047158,1758991833056,-500.0,0.00024989,2]
[388047159,1758991833066,-500.0,0.00024989,2]
[388047160,1758991833075,-376.18955069,0.00024989,2]
[388047161,1758991833085,-500.0,0.00024989,2]
[388047162,1758991833094,-500.0,0.00024989,2]
[388047163,1758991833103,-500.0,0.00024989,2]
[388047164,1758991833113,-500.0,0.00024989,2]
[388047165,1758991833122,-500.0,0.00024989,2]
[388047166,1758991833132,-500.0,0.00024989,2]
[388047167,1758991833141,-500.0,0.00024989,2]
[388047168,1758991833151,-500.0,0.00024989,2]
[388047169,1758991833160,-500.0,0.00024989,2]
[388047170,1758991833170,-500.0,0.00024989,2]
[388047171,1758991833179,-500.0,0.00024989,2]
[388047172,1758991833189,-500.0,0.00024989,2]
[388047173,1758991833198,-500.0,0.00024989,2]
[388047174,1758991833208,-500.0,0.00024989,2]
[388047175,1758991833217,-500.0,0.00024989,2]
[388047176,1758991833226,-500.0,0.00024989,2]
[388047177,1758991833236,-500.0,0.00024989,2]
[388047178,1758991833245,-89.4156278,0.00024989,2]
[388047179,1758991833257,-192.27687044,0.00024989,2]
[388047180,1758991833267,-500.0,0.00024989,2]
[388047181,1758991833277,-155.72312456,0.00024989,2]
[388047182,1758991833287,-344.27687544,0.00024989,2]
[388047183,1758991833297,-500.0,0.00024989,2]
[388047184,1758991833308,-500.0,0.00024989,2]
[388047185,1758991833319,-500.0,0.00024989,2]
[388047186,1758991833331,-500.0,0.00024989,2]
[388047187,1758991833341,-500.0,0.00024989,2]
[388047188,1758991833521,-580.12331031,0.00024989,2]
[388047189,1758991833532,-500.0,0.00024989,2]
[388047190,1758991833542,-500.0,0.00024989,2]
[388047191,1758991833551,-500.0,0.00024989,2]
[388047192,1758991833560,-500.0,0.00024989,2]
[388047193,1758991833570,-500.0,0.00024989,2]
[388047194,1758991833579,-24.79274968,0.0002499,2]
[388047195,1758991833591,-841.81967037,0.0002499,2]
[388047244,1758991838880,-333.38757995,0.0002499,2]
[388047246,1758991838890,-267.92990458,0.0002499,2]
[388047248,1758991838900,-1108.62102374,0.0002499,2]
[388047250,1758991838911,-817.1897567,0.0002499,2]
[388047252,1758991838922,-1430.69635413,0.0002499,2]
[388047255,1758991838935,-837.78188827,0.0002499,2]
[388047257,1758991838947,-344.27777,0.0002499,2]
[388047259,1758991838973,-14213.25487656,0.0002499,2]
[388047261,1758991838986,-1140.6840765,0.0002499,2]
[388047263,1758991838997,-500.0,0.00024994,2]
[388047265,1758991839007,-160.0,0.00024994,2]
[388047267,1758991839018,-500.0,0.00025,2]
[388047270,1758991839028,-500.0,0.00025,2]
[388047272,1758991839039,-500.0,0.00025,2]
[388047273,1758991839049,-500.0,0.00025,2]
[388047275,1758991839059,-500.0,0.00025,2]
[388047277,1758991839069,-283.27240862,0.00025,2]
[388047280,1758991839081,-500.0,0.00025,2]
[388047282,1758991839091,-500.0,0.00025,2]
[388047283,1758991839101,-500.0,0.00025,2]
[388047285,1758991839111,-500.0,0.00025,2]
[388047287,1758991839121,-523.22656174,0.00025,2]
[388047289,1758991839131,-202.69686348,0.00025156,2]
[388047291,1758991839141,-1000.0,0.00025548,2]
[388047293,1758991839151,-1000.0,0.00025548,2]
[388047295,1758991839161,-1000.0,0.00025548,2]
[388047297,1758991839171,-500.0,0.00025548,2]
[388047300,1758991839182,-1000.0,0.00025548,2]
[388047301,1758991839191,-1000.0,0.00025548,2]
[388047303,1758991839202,-1000.0,0.00025548,2]
[388047306,1758991839212,-236.58227828,0.00026027,19]
[388047308,1758991839222,-1500.0,0.00026096,2]
[388047310,1758991839233,-693.93706268,0.00026096,2]
[388047312,1758991839243,-1500.0,0.00026096,2]
[388047314,1758991839252,-1000.0,0.00026096,2]
[388047316,1758991839261,-1500.0,0.00026096,2]
[388047318,1758991839271,-471.31682989,0.00026096,2]
[388047320,1758991839281,-1500.0,0.00026096,2]
[388047321,1758991839290,-190.99603331,0.00026533,2]
[388047323,1758991839299,-504.04127944,0.00026643,2]
[388047325,1758991839308,-500.0,0.00026643,2]
[388047327,1758991839318,-536.58131925,0.00026643,2]
[388047329,1758991839327,-2000.0,0.00026644,2]
[388047331,1758991839337,-2000.0,0.00026644,2]
[388047333,1758991839346,-2000.0,0.00026644,2]
[388047335,1758991839356,-2000.0,0.00026644,2]
[388047337,1758991839367,-420.0,0.00026807,2]
[388047339,1758991839377,-1680.0,0.00027073,2]
[388047341,1758991839388,-18751.8216694,0.00027152,2]
[388047343,1758991839398,-1140.6840765,0.00027152,2]
[388047345,1758991839407,-160.0,0.00027171,2]
[388047347,1758991839419,-578.23,0.00027172,3]
[388047348,1758991839429,-289.12,0.00027172,3]
[388047349,1758991839439,-867.38,0.00027172,3]
[388047350,1758991839449,-1156.46,0.00027182,3]
[388047351,1758991839458,-2500.0,0.00027192,2]
[388047352,1758991839468,-2500.0,0.00027192,2]
[388047353,1758991839477,-1500.0,0.00027192,2]
[388047354,1758991839487,-664.91447464,0.00027192,2]
[388047355,1758991839497,-2500.0,0.00027192,2]
[388047356,1758991839506,-183.639,0.00027223,15]
[388047357,1758991839516,-5150.41665506,0.00027469,2]
[388047358,1758991839527,-260.0,0.00027719,2]
[388047359,1758991839536,-3000.0,0.0002774,5]
[388047360,1758991839545,-3000.0,0.0002774,5]
[388047361,1758991839557,-3000.0,0.0002774,5]
[388047362,1758991839574,-277.03,0.00027888,5]
[388047363,1758991839584,-230.28,0.00027888,5]
[388047364,1758991839594,-230.28,0.00027888,5]
[388047365,1758991839605,-230.28,0.00027888,5]
[388047366,1758991839616,-230.28,0.00027888,5]
[388047367,1758991839626,-230.28,0.00027888,5]
[388047368,1758991839635,-230.28,0.00027888,5]
[388047369,1758991839644,-230.26,0.00027888,5]
[388047370,1758991839654,-199.0,0.00028219,14]
[388047371,1758991839663,-360.0,0.00028267,2]
[388047372,1758991839672,-1354.67670321,0.00028288,5]
[388047373,1758991839682,-3500.0,0.00028288,5]
[388047374,1758991839691,-277.02710551,0.00028288,5]
[388047375,1758991839700,-3500.0,0.00028288,5]
[388047376,1758991839710,-200.0,0.00028288,10]
[388047377,1758991839719,-200.0,0.00028288,10]
[388047378,1758991839728,-200.0,0.00028288,10]
[388047379,1758991839737,-175.555695,0.00028288,10]
[388047380,1758991839748,-18751.8216694,0.00028542,2]
[388047381,1758991839757,-1140.6840765,0.00028542,2]
[388047382,1758991839767,-1156.46,0.00028542,3]
[388047383,1758991839777,-578.24,0.00028542,3]
[388047384,1758991839787,-2312.92,0.00028552,3]
[388047385,1758991839797,-5000.0,0.0002869,2]
[388047386,1758991839806,-460.0,0.00028815,2]
[388047387,1758991839817,-4000.0,0.00028836,5]
[388047388,1758991839826,-4000.0,0.00028836,5]
[388047389,1758991839836,-199.0,0.00028904,15]
[388047390,1758991839845,-1164.58396851,0.00029,2]
[388047391,1758991839854,-587.0,0.00029048,2]
[388047392,1758991839864,-1612.0,0.00029329,2]
[388047393,1758991839873,-560.0,0.00029363,2]
[388047394,1758991839883,-157.74474124,0.00029384,5]
[388047395,1758991839892,-4500.0,0.00029384,5]
[388047396,1758991839902,-18751.8216694,0.00029488,2]
[388047397,1758991839911,-1140.6840765,0.00029488,2]
[388047398,1758991839920,-199.0,0.00029589,16]
[388047399,1758991839929,-660.0,0.00029911,2]
[388047400,1758991839939,-5000.0,0.00029932,5]
[388047401,1758991839948,-1000.0,0.00030106,14]
[388047402,1758991839957,-760.0,0.00030459,2]
[388047403,1758991839965,-2976.89380597,0.00030479,5]
[388047404,1758991839974,-204.0,0.00030893,2]
[388047405,1758991839983,-87935.07115916,0.0003099,2]
[388047406,1758991839991,-860.0,0.00031007,2]
[388047408,1758991840000,-202.0,0.00031079,2]
[388047409,1758991840010,-324.0,0.0003132,7]
[388047410,1758991840019,-27601.71650613,0.00031344,2]
[388047412,1758991840030,-18751.8216694,0.00031434,2]
[388047413,1758991840039,-1140.6840765,0.00031434,2]
[388047414,1758991840048,-155.0,0.00031443,2]
[388047415,1758991840058,-151.09476238,0.00031444,2]
[388047416,1758991840068,-1000.0,0.00031444,2]
[388047417,1758991840078,-1000.0,0.00031444,2]
[388047418,1758991840089,-151.0,0.00031444,2]
[388047419,1758991840099,-1000.0,0.00031444,2]
[388047420,1758991840109,-1000.0,0.00031444,2]
[388047421,1758991840119,-151.0,0.00031444,2]
[388047422,1758991840129,-1000.0,0.00031444,2]
[388047423,1758991840139,-1000.0,0.00031444,2]
[388047424,1758991840148,-151.0,0.00031444,2]
[388047425,1758991840159,-1000.0,0.00031444,2]
[388047426,1758991840169,-1000.0,0.00031444,2]
[388047427,1758991840179,-151.0,0.00031444,2]
[388047428,1758991840190,-1000.0,0.00031444,2]
[388047429,1758991840201,-1000.0,0.00031444,2]
[388047430,1758991840211,-151.0,0.00031444,2]
[388047431,1758991840222,-1000.0,0.00031444,2]
[388047432,1758991840232,-1000.0,0.00031444,2]
[388047433,1758991840241,-151.0,0.00031444,2]
[388047434,1758991840251,-1000.0,0.00031444,2]
[388047435,1758991840261,-151.0,0.00031444,2]
[388047436,1758991840269,-1000.0,0.00031444,2]
[388047437,1758991840279,-1000.0,0.00031444,2]
[388047438,1758991840289,-151.0,0.00031444,2]
[388047439,1758991840299,-1000.0,0.00031444,2]
[388047440,1758991840309,-200.0,0.00031444,2]
[388047441,1758991840318,-267.24558836,0.00031444,2]
[388047442,1758991840327,-1000.0,0.00031444,2]
[388047443,1758991840336,-1000.0,0.00031444,2]
[388047444,1758991840345,-500.0,0.00031444,2]
[388047445,1758991840354,-1000.0,0.00031444,2]
[388047446,1758991840363,-200.0,0.00031444,2]
[388047447,1758991840372,-500.0,0.00031444,2]
[388047448,1758991840381,-1000.0,0.00031444,2]
[388047449,1758991840390,-1000.0,0.00031444,2]
[388047450,1758991840399,-200.0,0.00031444,2]
[388047451,1758991840408,-500.0,0.00031444,2]
[388047453,1758991840417,-1000.0,0.00031444,2]
[388047455,1758991840426,-1000.0,0.00031444,2]
[388047456,1758991840435,-165.86005632,0.00031444,2]
[388047458,1758991840445,-151.0,0.00031444,2]
[388047459,1758991840454,-500.0,0.00031444,2]
[388047460,1758991840464,-1000.0,0.00031444,2]
[388047462,1758991840473,-1000.0,0.00031444,2]
[388047463,1758991840484,-500.0,0.00031444,2]
[388047464,1758991840493,-1000.0,0.00031444,2]
[388047465,1758991840503,-151.0,0.00031444,2]
[388047466,1758991840512,-1000.0,0.00031444,2]
[388047467,1758991840522,-500.0,0.00031444,2]
[388047468,1758991840532,-1000.0,0.00031444,2]
[388047469,1758991840541,-151.0,0.00031444,2]
[388047470,1758991840550,-1000.0,0.00031444,2]
[388047471,1758991840563,-500.0,0.00031444,2]
[388047473,1758991840572,-1000.0,0.00031444,2]
[388047475,1758991840582,-151.0,0.00031444,2]
[388047476,1758991840592,-1000.0,0.00031444,2]
[388047477,1758991840600,-500.0,0.00031444,2]
[388047478,1758991840610,-1000.0,0.00031444,2]
[388047479,1758991840620,-1000.0,0.00031444,2]
[388047481,1758991840629,-151.0,0.00031444,2]
[388047482,1758991840638,-1000.0,0.00031444,2]
[388047483,1758991840647,-1000.0,0.00031444,2]
[388047484,1758991840656,-151.0,0.00031444,2]
[388047485,1758991840665,-1000.0,0.00031444,2]
[388047486,1758991840675,-500.0,0.00031444,2]
[388047487,1758991840689,-1110.96066527,0.00031444,2]
[388047488,1758991840699,-500.0,0.00031444,2]
[388047489,1758991840708,-1000.0,0.00031444,2]
[388047490,1758991840718,-500.0,0.00031444,2]
[388047491,1758991840728,-1000.0,0.00031444,2]
[388047492,1758991840738,-500.0,0.00031444,2]
[388047493,1758991840748,-151.0,0.00031444,2]
[388047494,1758991840758,-151.0,0.00031444,2]
[388047495,1758991840770,-151.0,0.00031444,2]
[388047496,1758991840780,-151.0,0.00031444,2]
[388047497,1758991840789,-300.23212506,0.00031444,2]
[388047498,1758991840798,-151.0,0.00031444,2]
[388047499,1758991840808,-823.0,0.00031478,2]
[388047500,1758991840818,-18751.8216694,0.00031481,2]
[388047501,1758991840828,-1140.6840765,0.00031481,2]
[388047502,1758991840838,-163.0,0.00031507,46]
[388047503,1758991840847,-324.0,0.00031523,2]
[388047504,1758991840857,-789.08802582,0.00031555,2]
[388047505,1758991840867,-821.86975659,0.0003162,7]
[388047506,1758991840876,-202.0,0.00031651,2]
[388047507,1758991840885,-202.0,0.00031706,2]
[388047508,1758991840895,-324.0,0.00031843,2]
[388047509,1758991840904,-210.98969952,0.00031887,2]
[388047510,1758991840914,-18751.8216694,0.0003198,2]
[388047511,1758991840923,-1140.6840765,0.0003198,2]
[388047512,1758991840933,-151.0,0.00031992,2]
[388047513,1758991840943,-160.75077375,0.00032,120]
[388047514,1758991840953,-359.28854187,0.00032,120]
[388047515,1758991840963,-172.22016768,0.00032,120]
[388047516,1758991840973,-151.0,0.00032,7]
[388047517,1758991840983,-324.0,0.00032008,7]
[388047518,1758991840993,-151.0,0.000321,10]
[388047519,1758991841003,-325.4116874,0.00032192,2]
[388047520,1758991841013,-324.0,0.00032257,2]
[388047521,1758991841023,-359.28854187,0.000323,120]
[388047522,1758991841032,-172.22016768,0.000323,120]
[388047523,1758991841042,-500.0,0.00032377,5]
[388047524,1758991841052,-500.0,0.00032377,5]
[388047525,1758991841062,-500.0,0.00032377,5]
[388047526,1758991841071,-500.0,0.00032377,5]
[388047527,1758991841081,-500.0,0.00032377,5]
[388047528,1758991841090,-500.0,0.00032377,5]
[388047529,1758991841100,-203.0,0.00032412,2]
[388047530,1758991841109,-3331.5476137,0.00032441,2]
[388047531,1758991841118,-500.0,0.00032463,5]
[388047532,1758991841128,-500.0,0.00032463,5]
[388047533,1758991841138,-151.0,0.0003254,2]
[388047534,1758991841280,-500.0,0.0003255,5]
[388047535,1758991841290,-500.0,0.0003255,5]
[388047536,1758991841300,-1157.383113,0.00032561,2]
[388047537,1758991841309,-979.0,0.00032562,2]
[388047538,1758991841319,-2161.0,0.00032562,2]
[388047539,1758991841328,-635.0,0.00032562,2]
[388047540,1758991841338,-150.0,0.00032562,2]
[388047541,1758991841347,-410.0,0.00032562,2]
[388047542,1758991841357,-150.0,0.00032562,2]
[388047543,1758991841366,-151.0,0.00032562,7]
[388047544,1758991841377,-151.0,0.00032562,7]
[388047545,1758991841387,-151.0,0.00032562,7]
[388047546,1758991841396,-151.0,0.00032562,7]
[388047547,1758991841405,-151.0,0.00032562,7]
[388047548,1758991841414,-291.5933,0.00032562,7]
[388047549,1758991841423,-151.0,0.00032562,7]
[388047550,1758991841433,-151.0,0.00032562,7]
[388047551,1758991841442,-151.0,0.00032562,7]
[388047552,1758991841451,-151.0,0.00032562,7]
[388047553,1758991841462,-448.864681,0.00032562,7]
[388047554,1758991841471,-448.864681,0.00032562,7]
[388047555,1758991841480,-151.0,0.00032562,7]
[388047556,1758991841491,-448.864681,0.00032562,7]
[388047557,1758991841501,-151.0,0.00032562,7]
[388047558,1758991841510,-448.864681,0.00032562,7]
[388047559,1758991841519,-151.0,0.00032562,7]
[388047560,1758991841528,-151.0,0.00032593,7]
[388047561,1758991841538,-359.28854187,0.000326,120]
[388047562,1758991841547,-172.22016768,0.000326,120]
[388047563,1758991841557,-500.0,0.0003263,5]
[388047564,1758991841569,-151.0,0.000327,20]
[388047565,1758991841579,-250.0,0.0003274,2]
[388047566,1758991841588,-1005.02632304,0.00032876,15]
[388047567,1758991841597,-392.504618,0.00032877,2]
[388047568,1758991841607,-5407.12645119,0.00032886,2]
[388047569,1758991841616,-290.839184,0.00032886,7]
[388047570,1758991841626,-151.1174203,0.00032886,2]
[388047571,1758991841635,-10000.0,0.00032886,7]
[388047572,1758991841645,-151.0,0.00032911,7]
[388047573,1758991841654,-1000.0,0.00032925,5]
[388047574,1758991841664,-1000.0,0.00032925,5]
[388047575,1758991841673,-1000.0,0.00032925,5]
[388047576,1758991841682,-1000.0,0.00032925,5]
[388047577,1758991841691,-1000.0,0.00032925,5]
[388047578,1758991841701,-202.0,0.00032927,7]
[388047579,1758991841710,-4588.0,0.00032958,2]
[388047580,1758991841720,-800.0,0.00032969,2]
[388047581,1758991841729,-37503.6433388,0.0003297,2]
[388047582,1758991841739,-2281.368153,0.0003297,2]
[388047583,1758991841748,-151.0,0.0003298,7]
[388047584,1758991841758,-151.0,0.0003298,7]
[388047585,1758991841767,-151.0,0.0003298,7]
[388047586,1758991841777,-151.0,0.0003298,7]
[388047587,1758991841787,-151.0,0.0003298,7]
[388047588,1758991841796,-151.0,0.0003298,7]
[388047589,1758991841806,-151.0,0.0003298,7]
[388047590,1758991841815,-151.0,0.0003298,7]
[388047591,1758991841825,-2856.758911,0.0003298,7]
[388047592,1758991841834,-2856.758911,0.0003298,7]
[388047593,1758991841844,-349.994915,0.0003298,7]
[388047594,1758991841853,-349.994915,0.0003298,7]
[388047595,1758991841862,-2856.758911,0.0003298,7]
[388047596,1758991841871,-349.994915,0.0003298,7]
[388047597,1758991841881,-2856.758911,0.0003298,7]
[388047598,1758991841890,-349.994915,0.0003298,7]
[388047599,1758991841899,-151.0,0.0003298,7]
[388047600,1758991841908,-151.0,0.0003298,7]
[388047601,1758991841917,-151.0,0.0003298,7]
[388047602,1758991841927,-151.0,0.0003298,7]
[388047603,1758991841936,-583.300728,0.0003298,7]
[388047604,1758991841945,-224.595644,0.0003298,7]
[388047605,1758991841955,-583.300728,0.0003298,7]
[388047606,1758991841964,-583.300728,0.0003298,7]
[388047607,1758991841973,-583.300728,0.0003298,7]
[388047608,1758991841983,-151.0,0.0003298,7]
[388047609,1758991841992,-151.0,0.0003298,7]
[388047610,1758991842001,-163.416548,0.0003298,7]
[388047611,1758991842011,-151.0,0.0003298,7]
[388047612,1758991842021,-1944.294821,0.0003298,7]
[388047613,1758991842032,-151.0,0.0003298,7]
[388047614,1758991842041,-151.0,0.0003298,7]
[388047615,1758991842051,-1944.294821,0.0003298,7]
[388047616,1758991842060,-151.0,0.0003298,7]
[388047617,1758991842070,-1944.294821,0.0003298,7]
[388047618,1758991842079,-1944.294821,0.0003298,7]
[388047619,1758991842089,-151.0,0.0003298,7]
[388047620,1758991842099,-151.0,0.0003298,7]
[388047621,1758991842109,-151.0,0.0003298,7]
[388047622,1758991842119,-151.0,0.0003298,7]
[388047623,1758991842129,-151.0,0.0003298,7]
[388047624,1758991842139,-151.0,0.0003298,7]
[388047625,1758991842147,-151.0,0.0003298,7]
[388047626,1758991842157,-151.0,0.0003298,7]
[388047627,1758991842166,-151.0,0.0003298,7]
[388047628,1758991842175,-151.0,0.0003298,7]
[388047629,1758991842184,-151.0,0.0003298,7]
[388047630,1758991842193,-169.830497,0.0003298,7]
[388047631,1758991842203,-169.830497,0.0003298,7]
[388047632,1758991842213,-151.0,0.0003298,7]
[388047633,1758991842223,-169.830497,0.0003298,7]
[388047634,1758991842232,-169.830497,0.0003298,7]
[388047635,1758991842242,-151.0,0.0003298,7]
[388047636,1758991842252,-160.0,0.0003298,7]
[388047637,1758991842262,-18751.8216694,0.00032984,2]
[388047638,1758991842272,-1140.6840765,0.00032984,2]
[388047639,1758991842282,-151.0,0.00032984,7]
[388047640,1758991842292,-151.0,0.00032984,7]
[388047641,1758991842301,-151.0,0.00032984,7]
[388047642,1758991842310,-151.0,0.00032984,7]
[388047643,1758991842320,-153.521579,0.00032984,7]
[388047644,1758991842329,-151.0,0.00032984,7]
[388047645,1758991842338,-151.0,0.00032984,7]
[388047646,1758991842347,-151.0,0.00032984,7]
[388047647,1758991842357,-448.864681,0.00032984,7]
[388047648,1758991842367,-448.864681,0.00032984,7]
[388047649,1758991842376,-151.0,0.00032984,7]
[388047650,1758991842385,-448.864681,0.00032984,7]
[388047651,1758991842395,-151.0,0.00032984,7]
[388047652,1758991842403,-448.864681,0.00032984,7]
[388047653,1758991842412,-151.0,0.00032984,7]
[388047654,1758991842422,-500.0,0.00032986,5]
[388047655,1758991842433,-500.0,0.00032986,2]
[388047656,1758991842443,-500.0,0.00032986,5]
[388047657,1758991842454,-500.0,0.00032986,5]
[388047658,1758991842464,-160.0,0.00032986,2]
[388047659,1758991842473,-417.15472785,0.00032986,2]
[388047660,1758991842483,-151.0,0.00032994,7]
[388047661,1758991842495,-151.0,0.00032994,7]
[388047662,1758991842505,-151.0,0.00032994,7]
[388047663,1758991842516,-151.0,0.00032994,7]
[388047664,1758991842527,-231.954709,0.00032994,7]
[388047665,1758991842536,-231.954709,0.00032994,7]
[388047666,1758991842546,-231.954709,0.00032994,7]
[388047667,1758991842556,-151.0,0.00032994,7]
[388047668,1758991842572,-231.954709,0.00032994,7]
[388047669,1758991842582,-151.0,0.00032994,7]
[388047670,1758991842592,-151.0,0.00032994,7]
[388047671,1758991842601,-151.0,0.00032994,7]
[388047672,1758991842610,-151.0,0.00032994,7]
[388047673,1758991842619,-555.098845,0.00032994,7]
[388047674,1758991842628,-555.098845,0.00032994,7]
[388047675,1758991842638,-555.098845,0.00032994,7]
[388047676,1758991842646,-151.0,0.00032994,7]
[388047677,1758991842655,-555.098845,0.00032994,7]